fUSD/lending_fUSD_20250611
["ID","MTS","AMOUNT","RATE_DAILY","PERIOD"]
[365375952,1749627040809,-472.1367213,0.000199,2]
[365375953,1749627040818,-1275.70845675,0.000199,2]
[365375954,1749627040828,-204.18169874,0.000199,2]
[365375955,1749627040838,-500.0,0.00019973,2]
[365375956,1749627040848,-500.0,0.00019973,2]
[365375957,1749627040859,-502.27276169,0.00019973,2]
[365375958,1749627040870,-500.0,0.00019973,2]
[365375959,1749627040880,-182.24021869,0.00019985,2]
[365375960,1749627040889,-13114.0244886,0.00019986,2]
[365375961,1749627040899,-10412.7775847,0.00019986,2]
[365375962,1749627040908,-7711.5306808,0.00019986,2]
[365375963,1749627040917,-5010.2837769,0.00019986,2]
[365375964,1749627040927,-2309.036873,0.00019986,2]
[365375965,1749627040936,-500.0,0.00019989,2]
[365375966,1749627040945,-502.6,0.00019989,2]
[365375967,1749627040954,-500.0,0.00019989,2]
[365375968,1749627040964,-500.0,0.00019989,2]
[365375969,1749627040973,-83171.42583828,0.0001999,2]
[365375970,1749627040983,-179.0,0.0001999,4]
[365375971,1749627040992,-179.0,0.0001999,2]
[365375972,1749627041002,-15815.2713925,0.00019996,2]
[365375973,1749627041011,-500.0,0.00019999,2]
[365375974,1749627041021,-150.0,0.00019999,2]
[365375975,1749627041031,-155.62,0.00019999,2]
[365375976,1749627041040,-1000.0,0.00019999,2]
[365375977,1749627041049,-1000.0,0.00019999,2]
[365375978,1749627041059,-256.53097795,0.00019999,2]
[365375979,1749627041068,-545.0,0.0002,2]
[365375980,1749627041077,-833.29909032,0.0002,3]
[365375981,1749627041087,-241517.74740125,0.0002,3]
[365375982,1749627041096,-5717.88243725,0.0002,3]
[365375983,1749627041105,-52307.19071335,0.0002,2]
[365375984,1749627041117,-1830.00002,0.0002,2]
[365375996,1749627043329,-4634.2631973,0.0002,2]
[365375997,1749627043340,-841.09078813,0.0002,2]
[365375998,1749627043351,-735.915,0.0002,2]
[365375999,1749627043363,-727.93842349,0.0002,2]
[365376000,1749627043378,-20609.19454463,0.0002,2]
[365376001,1749627043409,-17439.19300254,0.0002,2]
[365376002,1749627043420,-11683.17570366,0.0002,2]
[365376003,1749627043446,-556.3898016,0.0002,2]
[365376004,1749627043458,-5376.445856,0.0002,2]
[365376005,1749627043469,-300.42878841,0.0002,2]
[365376006,1749627043532,-12817.6468411,0.0002,2]
[365376007,1749627043544,-584.56243383,0.0002,2]
[365376009,1749627043642,-414.18958373,0.0002,2]
[365376010,1749627043654,-1035.68005836,0.0002,2]
[365376011,1749627043666,-48307.8266375,0.0002,2]
[365376012,1749627043678,-3899.6,0.0002,2]
[365376013,1749627043689,-20000.0,0.0002,2]
[365376014,1749627043702,-1850.7145572,0.0002,2]
[365376015,1749627043714,-1951.11125458,0.0002,2]
[365376016,1749627043729,-788.26761711,0.0002,2]
[365376027,1749627046145,-508.47,0.00016345,2]
[365376028,1749627046155,-1467.7069,0.000185,2]
[365376029,1749627046165,-20248.89461393,0.0002,2]
[365376030,1749627046177,-914.60609261,0.0002,2]
[365376031,1749627046188,-5792.17687637,0.0002,2]
[365376032,1749627046256,-1484.73048015,0.0002,2]
[365376033,1749627046267,-669.0,0.0002,2]
[365376034,1749627046279,-2524.83090303,0.0002,2]
[365376035,1749627046290,-1166.41461817,0.0002,2]
[365376036,1749627046361,-323.57617519,0.0002,2]
[365376037,1749627046544,-1210.40980583,0.0002,2]
[365376038,1749627046556,-16212.41634949,0.0002,2]
[365376039,1749627046567,-27651.31283147,0.0002,2]
[365376043,1749627222481,10000.0,0.00016,2]
[365376044,1749627235992,3436.9,0.00016,2]
[365376045,1749627561037,1333.0,0.00024067,120]
[365376047,1749627848571,153.88,0.00013699,2]
[365376049,1749627907794,210.9959505,0.000246,120]
[365376051,1749628029430,-500.0,0.00016164,2]
[365376052,1749628029455,-150.03127188,0.00016164,2]
[365376053,1749628032094,-349.96872812,0.00016164,2]
[365376054,1749628032119,-505.05,0.00017057,2]
[365376055,1749628032141,-302.41,0.00017057,2]
[365376056,1749628032163,-500.3,0.00017057,2]
[365376057,1749628032185,-587.07,0.00017057,2]
[365376058,1749628032210,-201.0,0.00017904,2]
[365376059,1749628032232,-300.0,0.00017998,2]
[365376060,1749628032254,-1200.0,0.00017999,2]
[365376061,1749628032276,-300.0,0.00017999,2]
[365376062,1749628032296,-485.79956137,0.00018,20]
[365376063,1749628035091,-1509.47847151,0.00018,20]
[365376064,1749628041882,3266.2,0.00024658,120]
[365376065,1749628148696,291.96957423,0.0002,30]
[365376066,1749628159152,-512.14988324,0.00016164,2]
[365376067,1749628159175,-171.13119888,0.00016164,2]
[365376069,1749628232395,-600.0,0.00016164,2]
[365376070,1749628232405,-67.88112852,0.00016164,2]
[365376071,1749628232415,-257.96315791,0.00017402,2]
[365376072,1749628232427,-248.09684209,0.00017402,2]
[365376073,1749628232437,-498.18,0.00017402,2]
[365376074,1749628232447,-38.42956471,0.00017402,2]
[365376075,1749628232534,-452.86043529,0.00017402,2]
[365376076,1749628232544,-64.84459362,0.00017402,2]
[365376077,1749628232577,-240.72540638,0.00017402,2]
[365376078,1749628232586,-497.48,0.00017571,2]
[365376079,1749628232595,-491.07,0.00017571,2]
[365376080,1749628232605,-305.22,0.00017571,2]
[365376081,1749628232615,-496.61,0.00017763,2]
[365376082,1749628232624,-503.66,0.00017763,2]
[365376083,1749628232633,-303.82,0.00017763,2]
[365376084,1749628232643,-1200.0,0.00017982,2]
[365376085,1749628232653,-492.24,0.00017983,2]
[365376086,1749628232662,-303.97,0.00017983,2]
[365376087,1749628232671,-497.85,0.00017983,2]
[365376088,1749628232680,-6050.95459361,0.00018,20]
[365376089,1749628232693,-1304.83737351,0.00018,20]
[365376090,1749628232702,-509.12,0.00018,2]
[365376091,1749628232711,-505.43,0.00018,2]
[365376092,1749628232721,-302.6,0.00018,2]
[365376093,1749628232730,-492.65,0.00018,2]
[365376094,1749628232740,-501.43,0.00018,2]
[365376095,1749628232749,-504.7,0.00018,2]
[365376096,1749628232758,-303.45,0.00018,2]
[365376097,1749628232768,-503.63,0.00018,2]
[365376098,1749628232778,-493.82,0.00018,2]
[365376099,1749628232788,-178.39859639,0.0001869,2]
[365376100,1749628232798,-8713.98,0.0001879,2]
[365376101,1749628232807,-541.52,0.00018792,2]
[365376102,1749628232817,-150.0,0.00018792,7]
[365376103,1749628232827,-211.42,0.00018818,2]
[365376104,1749628232836,-505.0,0.00018899,2]
[365376105,1749628232846,-212.82943481,0.000189,2]
[365376106,1749628232855,-666.0,0.00018947,2]
[365376107,1749628232866,-1000.0,0.00018979,2]
[365376108,1749628232875,-250.0,0.0001899,2]
[365376109,1749628232885,-250.0,0.00019,2]
[365376110,1749628232895,-212.82943474,0.00019043,2]
[365376111,1749628232905,-212.82943474,0.00019186,2]
[365376113,1749628232915,-201.0,0.00019262,3]
[365376115,1749628232925,-587.07,0.00019321,2]
[365376117,1749628232934,-212.82943474,0.00019329,2]
[365376118,1749628232943,-164.65,0.00019398,2]
[365376121,1749628232953,-212.82943474,0.00019471,2]
[365376125,1749628232963,-207.4,0.00019587,2]
[365376127,1749628232972,-212.82943474,0.00019614,2]
[365376131,1749628232981,-833.29909032,0.00019708,2]
[365376133,1749628232991,-212.82943474,0.00019757,2]
[365376136,1749628233000,-150.0,0.000198,2]
[365376138,1749628233010,-1699.21895378,0.00019813,2]
[365376141,1749628233022,-263.35,0.00019813,2]
[365376143,1749628233033,-1372.28402153,0.00019813,2]
[365376304,1749628238258,-12429.50325961,0.00018602,2]
[365376308,1749628238302,-2011.3322,0.00018602,2]
[365376309,1749628238468,-8807.55355903,0.00018602,2]
[365376310,1749628238479,-515.05254015,0.00018602,2]
[365376475,1749628240573,-2540.05405483,0.00018602,2]
[365376509,1749628240887,-947.53438638,0.00018602,2]
[365376511,1749628240896,-747.14702469,0.00019813,2]
[365376513,1749628240906,-2349.333,0.00019813,2]
[365376515,1749628240915,-155.0,0.00019813,2]
[365376517,1749628240925,-151.71,0.0001984,2]
[365376519,1749628240934,-500.0,0.0001984,2]
[365376521,1749628240944,-225.298,0.00019877,2]
[365376523,1749628240953,-151.0,0.00019888,2]
[365376525,1749628240963,-151.76,0.00019899,2]
[365376527,1749628240972,-302.49,0.00019899,2]
[365376529,1749628240982,-157.3789071,0.00019899,2]
[365376531,1749628240991,-508.9,0.00019899,2]
[365376534,1749628241001,-497.72,0.00019899,2]
[365376535,1749628241010,-497.76,0.00019899,2]
[365376537,1749628241019,-300.73,0.00019899,2]
[365376539,1749628241028,-157.3789071,0.00019899,2]
[365376541,1749628241038,-157.3789071,0.00019899,2]
[365376543,1749628241047,-496.07,0.000199,2]
[365376545,1749628241056,-492.09,0.000199,2]
[365376547,1749628241066,-497.53,0.000199,2]
[365376549,1749628241075,-157.3789071,0.000199,2]
[365376551,1749628241084,-9808.5813,0.000199,2]
[365376553,1749628241094,-157.3789071,0.000199,2]
[365376555,1749628241103,-490.3,0.000199,2]
[365376557,1749628241113,-498.69,0.000199,2]
[365376559,1749628241122,-509.14,0.000199,2]
[365376561,1749628241131,-304.89,0.000199,2]
[365376563,1749628241140,-304.44,0.000199,2]
[365376565,1749628241150,-300.69,0.000199,2]
[365376567,1749628241159,-212.82943474,0.000199,2]
[365376569,1749628241171,-157.3789071,0.000199,2]
[365376571,1749628241180,-1275.70845675,0.000199,2]
[365376573,1749628241190,-493.36,0.000199,2]
[365376575,1749628241199,-508.62,0.000199,2]
[365376577,1749628241209,-501.69,0.000199,2]
[365376579,1749628241218,-502.22,0.000199,2]
[365376581,1749628241227,-498.31,0.000199,2]
[365376583,1749628241236,-495.64,0.000199,2]
[365376585,1749628241247,-500.0,0.00019973,2]
[365376587,1749628241257,-500.0,0.00019973,2]
[365376588,1749628241267,-500.0,0.00019973,2]
[365376590,1749628241276,-502.27276169,0.00019973,2]
[365376592,1749628241286,-324.5543214,0.00019985,2]
[365376594,1749628241296,-12334.316747,0.00019986,2]
[365376597,1749628241306,-10152.8750042,0.00019986,2]
[365376598,1749628241315,-7971.4332613,0.00019986,2]
[365376601,1749628241326,-5789.9915185,0.00019986,2]
[365376602,1749628241335,-3608.5497756,0.00019986,2]
[365376604,1749628241345,-500.0,0.00019989,2]
[365376606,1749628241355,-500.0,0.00019989,2]
[365376608,1749628241364,-502.6,0.00019989,2]
[365376611,1749628241374,-500.0,0.00019989,2]
[365376612,1749628241383,-495.43,0.0001999,2]
[365376614,1749628241392,-495.43,0.0001999,2]
[365376616,1749628241401,-495.43,0.0001999,2]
[365376618,1749628241410,-495.43,0.0001999,2]
[365376620,1749628241419,-495.43,0.0001999,2]
[365376622,1749628241428,-14515.7584899,0.00019996,2]
[365376624,1749628241438,-155.62,0.00019999,2]
[365376626,1749628241447,-500.0,0.00019999,2]
[365376628,1749628241456,-150.0,0.00019999,2]
[365376630,1749628241466,-304.99,0.00019999,2]
[365376632,1749628241476,-500.1,0.00019999,2]
[365376634,1749628241485,-498.85,0.00019999,2]
[365376636,1749628241495,-547.0,0.0002,2]
[365376638,1749628241503,-833.29909032,0.0002,3]
[365376640,1749628241512,-245443.39671422,0.0002,3]
[365376642,1749628241522,-5717.88243725,0.0002,3]
[365376644,1749628241531,-155566.33686633,0.0002,2]
[365376647,1749628241543,-1535.05641062,0.0002,2]
[365376909,1749628246323,-504.09,0.00019813,2]
[365376910,1749628246333,-39797.23298254,0.0002,2]
[365376911,1749628246344,-2399.66926473,0.0002,2]
[365376912,1749628246367,-434.35323705,0.0002,2]
[365376913,1749628246610,-270.36440713,0.00019813,2]
[365376920,1749628265595,1129.5674747,0.00024658,120]
[365376921,1749628369440,1914.0,0.00024658,120]
[365376923,1749628854173,153.88,0.00013699,2]
[365376924,1749628950720,150.0,0.00021794,120]
[365376927,1749629131576,150.0,0.00024119,120]
[365376928,1749629148317,157.31,0.00024658,120]
[365376932,1749629238138,-366.39461662,0.00016164,2]
[365376933,1749629239098,-133.60538338,0.00016164,2]
[365376934,1749629239119,-152.481,0.00016519,2]
[365376935,1749629239141,-740.85369923,0.00016618,2]
[365376936,1749629246108,-459.14630077,0.00016618,2]
[365376937,1749629246131,-300.0,0.00016618,2]
[365376938,1749629246152,-300.0,0.00016618,2]
[365376939,1749629246174,-571.15,0.00016619,2]
[365376940,1749629246195,-506.67,0.00016619,2]
[365376941,1749629246220,-509.55,0.00016619,2]
[365376942,1749629246241,-300.49,0.00016619,2]
[365376943,1749629246263,-509.4,0.00016619,2]
[365376944,1749629246284,-495.36,0.00016619,2]
[365376945,1749629246305,-3.69107516,0.00016619,2]
[365376947,1749629351134,-463.16592224,0.00016164,2]
[365376956,1749629431540,-36.83407776,0.00016164,2]
[365376957,1749629431552,-383.71054169,0.00016164,2]
[365376958,1749629431627,-79.45538055,0.00016164,2]
[365376959,1749629431638,-1200.0,0.00016618,2]
[365376960,1749629431648,-297.29892484,0.00016619,2]
[365376961,1749629431657,-505.21,0.00016619,2]
[365376962,1749629431672,-493.28,0.00016619,2]
[365376963,1749629431681,-500.9,0.00016619,2]
[365376964,1749629431690,-302.21,0.00016619,2]
[365376965,1749629431699,-503.2,0.00016619,2]
[365376966,1749629431709,-507.45,0.00016619,2]
[365376967,1749629431718,-495.98,0.00016619,2]
[365376968,1749629431728,-305.67,0.00016619,2]
[365376969,1749629431737,-504.89,0.00016619,2]
[365376970,1749629431746,-404.45569451,0.00016619,2]
[365376971,1749629431757,-85.70430549,0.00016619,2]
[365376972,1749629431766,-303.8,0.00016619,2]
[365376973,1749629431775,-491.04,0.00016619,2]
[365376974,1749629431784,-492.81,0.00016619,2]
[365376975,1749629431793,-304.47,0.00016619,2]
[365376976,1749629431802,-494.76,0.00016619,2]
[365376977,1749629431811,-501.11,0.00016619,2]
[365376978,1749629431821,-498.09,0.00016619,2]
[365376979,1749629431830,-302.99,0.00016619,2]
[365376980,1749629431839,-498.08,0.00016619,2]
[365376981,1749629431849,-499.49,0.00016619,2]
[365376982,1749629431861,-304.32,0.00016619,2]
[365376983,1749629431871,-490.08,0.00016619,2]
[365376984,1749629431880,-501.08,0.00016619,2]
[365376985,1749629431889,-112.17569451,0.00016619,2]
[365376986,1749629431901,-391.55430549,0.00016619,2]
[365376987,1749629431910,-300.45,0.00016619,2]
[365376988,1749629431919,-504.68,0.00016619,2]
[365376989,1749629431928,-507.78,0.00016619,2]
[365376990,1749629431937,-505.55,0.00016619,2]
[365376991,1749629431946,-302.48,0.00016619,2]
[365376992,1749629431955,-498.42,0.00016619,2]
[365376993,1749629431964,-492.52,0.00016619,2]
[365376994,1749629431974,-46.56569951,0.00016619,2]
[365376996,1749629431985,-256.22430049,0.00016619,2]
[365376998,1749629431994,-492.05,0.00016619,2]
[365376999,1749629432003,-302.09,0.00016619,2]
[365377000,1749629432012,-249.63569951,0.00016619,2]
[365377001,1749629432023,-50.56430049,0.00016619,2]
[365377002,1749629432032,-506.36,0.00016619,2]
[365377003,1749629432042,-302.97,0.00016619,2]
[365377004,1749629432051,-500.6,0.00016619,2]
[365377005,1749629432061,-201.0,0.0001662,2]
[365377006,1749629432070,-677.27225834,0.00017691,2]
[365377007,1749629432079,-211.73152046,0.000179,2]
[365377008,1749629432088,-201.0,0.00018116,4]
[365377009,1749629432098,-250.0,0.00018159,2]
[365377010,1749629432110,-947.54,0.00018174,2]
[365377011,1749629432119,-150.0,0.00018203,7]
[365377012,1749629432131,-1680.0,0.00018248,2]
[365377014,1749629432141,-356.24,0.0001826,2]
[365377016,1749629432150,-198.43,0.00018288,2]
[365377017,1749629432160,-416.74777945,0.00018304,2]
[365377019,1749629432169,-500.0,0.00018304,2]
[365377021,1749629432179,-1759.55,0.00018305,2]
[365377023,1749629432188,-228.26,0.00018311,2]
[365377025,1749629432197,-666.0,0.00018358,2]
[365377027,1749629432207,-845.73414126,0.00018403,2]
[365377036,1749629432270,-1765.46802316,0.00018403,2]
[365377037,1749629432282,-2853.74783558,0.00018403,2]
[365377038,1749629432292,-150.42,0.00018485,2]
[365377039,1749629432301,-211.73152044,0.00018567,2]
[365377040,1749629432311,-151.71,0.00018598,2]
[365377041,1749629432320,-1000.0,0.00018599,2]
[365377042,1749629432329,-502.06,0.00018599,2]
[365377043,1749629432338,-305.77,0.00018599,2]
[365377044,1749629432348,-492.18,0.00018599,2]
[365377045,1749629432359,-501.57,0.00018599,2]
[365377046,1749629432368,-375.15268573,0.00018599,2]
[365377047,1749629432380,-117.80731427,0.00018599,2]
[365377048,1749629432389,-286.5462938,0.00018599,2]
[365377049,1749629432401,-18.8337062,0.00018599,2]
[365377050,1749629432411,-501.07,0.00018599,2]
[365377051,1749629432421,-504.13,0.00018599,2]
[365377052,1749629432430,-505.58,0.00018599,2]
[365377053,1749629432439,-301.52,0.00018599,2]
[365377054,1749629432449,-501.1,0.00018599,2]
[365377055,1749629432458,-505.21,0.00018599,2]
[365377056,1749629432467,-300.9,0.00018599,2]
[365377057,1749629432476,-495.06,0.00018599,2]
[365377058,1749629432485,-500.25,0.00018599,2]
[365377059,1749629432494,-1097.45088849,0.0001873,2]
[365377060,1749629432503,-200.0,0.00018732,2]
[365377061,1749629432512,-305.81,0.00018814,2]
[365377062,1749629432521,-506.99,0.00018814,2]
[365377063,1749629432530,-504.53,0.00018814,2]
[365377064,1749629432540,-505.06,0.00018847,2]
[365377065,1749629432553,-304.99,0.00018847,2]
[365377066,1749629432562,-502.67,0.00018847,2]
[365377067,1749629432572,-509.32,0.00018847,2]
[365377068,1749629432582,-571.15,0.00018883,2]
[365377069,1749629432592,-300.07,0.0001898,2]
[365377070,1749629432601,-506.07,0.0001898,2]
[365377071,1749629432611,-508.27,0.0001898,2]
[365377072,1749629432621,-500.12,0.0001898,2]
[365377073,1749629432632,-304.81,0.0001898,2]
[365377074,1749629432642,-494.35,0.0001898,2]
[365377075,1749629432652,-494.45,0.00018981,2]
[365377076,1749629432662,-505.14,0.00018981,2]
[365377077,1749629432882,-303.49,0.00018982,2]
[365377078,1749629432892,-301.74,0.00018982,2]
[365377079,1749629432902,-493.18,0.00018986,2]
[365377080,1749629432912,-500.32,0.00018986,2]
[365377081,1749629432921,-502.28,0.00018986,2]
[365377082,1749629432931,-504.16,0.00018986,2]
[365377083,1749629432940,-301.5,0.00018991,2]
[365377084,1749629432949,-151.0,0.00018999,2]
[365377085,1749629432959,-207.4,0.00018999,2]
[365377086,1749629432968,-826.32049484,0.00019,2]
[365377087,1749629432977,-507.06,0.00019014,2]
[365377088,1749629432986,-501.31,0.00019014,2]
[365377089,1749629432996,-508.19,0.00019014,2]
[365377090,1749629433005,-490.77,0.00019032,2]
[365377091,1749629433015,-507.51,0.00019032,2]
[365377092,1749629433024,-302.9,0.00019075,2]
[365377093,1749629433033,-301.56,0.00019075,2]
[365377094,1749629433043,-152.0,0.00019176,3]
[365377095,1749629433054,-324.5543214,0.00019178,2]
[365377096,1749629433064,-211.73152044,0.00019233,2]
[365377097,1749629433074,-507.2,0.00019265,2]
[365377098,1749629433085,-507.91,0.00019265,2]
[365377099,1749629433095,-493.19,0.00019265,2]
[365377100,1749629433107,-500.0,0.00019342,2]
[365377101,1749629433119,-189.81906863,0.00019384,2]
[365377108,1749629438781,-2052.19193433,0.00019384,2]
[365377109,1749629438791,-1452.44287585,0.000194,2]
[365377171,1749629439835,-13429.61932777,0.000194,2]
[365377172,1749629439847,-919.39818052,0.000194,2]
[365377173,1749629440061,-11260.8477478,0.000194,2]
[365377174,1749629440072,-6286.69186806,0.000194,2]
[365377175,1749629440083,-833.29909032,0.00019437,2]
[365377176,1749629440092,-305.57,0.00019499,2]
[365377177,1749629440102,-493.81,0.00019499,2]
[365377178,1749629440113,-496.1,0.00019499,2]
[365377179,1749629440123,-505.7,0.00019499,2]
[365377180,1749629440132,-497.63,0.00019499,2]
[365377181,1749629440141,-303.27,0.00019499,2]
[365377182,1749629440151,-499.42,0.00019499,2]
[365377183,1749629440160,-492.06,0.00019499,2]
[365377184,1749629440170,-300.96,0.00019499,2]
[365377185,1749629440179,-505.81,0.000195,2]
[365377186,1749629440188,-490.34,0.000195,2]
[365377187,1749629440198,-509.47,0.000195,2]
[365377188,1749629440207,-505.56,0.000195,2]
[365377189,1749629440216,-302.93,0.000195,2]
[365377190,1749629440226,-495.34,0.000195,2]
[365377191,1749629440235,-502.87,0.000195,2]
[365377192,1749629440245,-502.46,0.000196,2]
[365377193,1749629440254,-302.86,0.000196,2]
[365377194,1749629440264,-491.66,0.000196,2]
[365377195,1749629440274,-490.58,0.000196,2]
[365377196,1749629440283,-305.93,0.000196,2]
[365377197,1749629440292,-496.4,0.000196,2]
[365377198,1749629440302,-493.1,0.000196,2]
[365377199,1749629440311,-498.31,0.000196,2]
[365377200,1749629440320,-151.96,0.000196,2]
[365377201,1749629440330,-303.55,0.000196,2]
[365377202,1749629440339,-201.0,0.00019612,6]
[365377203,1749629440349,-270.28919117,0.00019629,2]
[365377204,1749629440359,-217.7565683,0.0001965,2]
[365377205,1749629440368,-182.24021869,0.0001965,2]
[365377206,1749629440378,-203.07685357,0.0001965,2]
[365377207,1749629440387,-269.95731263,0.0001965,2]
[365377208,1749629440397,-2349.333,0.00019651,2]
[365377209,1749629440407,-747.147,0.00019651,2]
[365377210,1749629440416,-155.0,0.00019651,2]
[365377211,1749629440426,-5946.18,0.000197,2]
[365377212,1749629440435,-850.88,0.0001979,2]
[365377213,1749629440444,-179.0,0.000198,2]
[365377214,1749629440454,-179.0,0.000198,2]
[365377215,1749629440463,-31410.76,0.000198,2]
[365377216,1749629440472,-57232.0,0.000198,2]
[365377217,1749629440482,-163.73430845,0.000198,2]
[365377218,1749629440491,-32.14559287,0.00019813,2]
[365377219,1749629440501,-494.09,0.00019813,2]
[365377220,1749629440776,-505.59,0.00019813,2]
[365377221,1749629440793,-498.08,0.00019813,2]
[365377222,1749629440803,-300.52,0.00019813,2]
[365377223,1749629440812,-509.36,0.00019813,2]
[365377224,1749629440821,-281.623,0.00019822,2]
[365377225,1749629440830,-500.0,0.0001984,2]
[365377226,1749629440839,-850.88,0.0001989,2]
[365377227,1749629440848,-9808.5813,0.000199,2]
[365377228,1749629440859,-211.73152044,0.000199,2]
[365377229,1749629440869,-1275.70845675,0.000199,2]
[365377230,1749629440879,-5562.0,0.000199,3]
[365377231,1749629440888,-502.27276169,0.00019973,2]
[365377232,1749629440897,-500.0,0.00019973,2]
[365377233,1749629440906,-500.0,0.00019973,2]
[365377234,1749629440916,-500.0,0.00019973,2]
[365377235,1749629440926,-850.88,0.00019976,2]
[365377236,1749629440935,-5442.4759074,0.00019986,2]
[365377237,1749629440944,-4345.3544107,0.00019986,2]
[365377238,1749629440954,-3248.232914,0.00019986,2]
[365377239,1749629440964,-2151.1114173,0.00019986,2]
[365377240,1749629440973,-1053.9899206,0.00019986,2]
[365377241,1749629440982,-6681.1639985,0.00019986,2]
[365377242,1749629440991,-5575.7069173,0.00019986,2]
[365377243,1749629441000,-4470.2498362,0.00019986,2]
[365377244,1749629441010,-3364.792755,0.00019986,2]
[365377245,1749629441018,-2259.3356738,0.00019986,2]
[365377246,1749629441027,-242.3820936,0.00019986,2]
[365377247,1749629441037,-242.3820936,0.00019986,2]
[365377248,1749629441046,-242.3820936,0.00019986,2]
[365377249,1749629441056,-242.3820936,0.00019986,2]
[365377250,1749629441065,-242.3820936,0.00019986,2]
[365377251,1749629441074,-850.88,0.0001999,2]
[365377252,1749629441084,-850.88,0.0001999,2]
[365377253,1749629441093,-6539.5974041,0.00019996,2]
[365377254,1749629441104,-7786.6210797,0.00019996,2]
[365377255,1749629441114,-242.3820936,0.00019996,2]
[365377256,1749629441123,-155.62,0.00019999,2]
[365377257,1749629441133,-500.0,0.00019999,2]
[365377258,1749629441146,-150.0,0.00019999,2]
[365377259,1749629441156,-542.0,0.0002,2]
[365377260,1749629441165,-265832.94654759,0.0002,3]
[365377261,1749629441174,-833.29909032,0.0002,3]
[365377262,1749629441184,-5717.88243725,0.0002,3]
[365377263,1749629441193,-27191.45111857,0.0002,2]
[365377264,1749629441206,-1403.07622281,0.0002,2]
[365377269,1749629442604,-201.0,0.0001662,2]
[365377270,1749629442615,-195.94694041,0.0001965,2]
[365377271,1749629442624,-203425.12874053,0.0002,2]
[365377272,1749629442637,-4372.73894304,0.0002,2]
[365377273,1749629442678,-392.72164948,0.0002,2]
[365377274,1749629442708,-1372.47396499,0.0002,2]
[365377275,1749629442857,-2509.16923208,0.0002,2]
[365377276,1749629442872,-300.87043634,0.0002,2]
[365377277,1749629442883,-5489.40847301,0.0002,2]
[365377278,1749629442894,-11256.56358123,0.0002,2]
[365377279,1749629442909,-324.07244127,0.0002,2]
[365377283,1749629445526,-23840.51868597,0.0002,2]
[365377284,1749629445609,-1130.0512,0.0002,2]
[365377285,1749629445668,-656.90474624,0.0002,2]
[365377286,1749629445680,-3599.27753915,0.0002,2]
[365377287,1749629445691,-5816.2114823,0.0002,2]
[365377288,1749629445844,-789.21117698,0.0002,2]
[365377289,1749629445856,-2937.42180754,0.0002,2]
[365377295,1749629550811,150.0,0.00023049,120]
[365377297,1749629621222,1000.0,0.00024657,120]
[365377298,1749629621486,1000.0,0.00024657,120]
[365377299,1749629621756,1000.0,0.00024657,120]
[365377300,1749629622001,1000.0,0.00024657,120]
[365377301,1749629622271,1000.0,0.00024657,120]
[365377302,1749629622555,1000.0,0.00024657,120]
[365377303,1749629622954,319.29818321,0.00024657,120]
[365377304,1749629670643,13772.0,0.00016,2]
[365377306,1749629736966,450.0,0.000246,120]
[365377307,1749629756387,1012.965,0.00016,2]
[365377308,1749629771893,201.0,0.0001562,2]